Cogmind - Beta 16 @@@ ROGUE MODE // 2025.12.29 @ 16:29:51 Player: skilledspacepolice Result: Destroyed by D9-A3V(j) with Overtuned Pulse Rifle Performance ------------- Evolutions (0) 0 Regions Visited (4) 800 Robots Destroyed (8) 40 Value Destroyed (313) 313 Prototype IDs (13) 260 Alien Tech Used (0) 0 Bonus (800) 800 TOTAL SCORE: 2213 Bonus ------- Registered with UFD 300 Met Optimus in HQ 500 Cogmind --------- Core Integrity 0/250 Matter 300/300 Energy 240/240 System Corruption 0% Temperature Hot (208) Movement Treading (140) Location -8/Scraptown Parts ------- > --- POWER (1) -------- Nuclear Core > --- PROPULSION (2) --- Overtuned Treads Overtuned Treads > --- UTILITY (2) ------ Makeshift Targeting Computer A0-MCA's Component Scanner > --- WEAPON (2) ------- Beam Cannon > --- INVENTORY (5) ---- Scrap Suit Makeshift Targeting Computer Makeshift Hacking Suite Makeshift Hacking Suite Peak State ------------ > --- POWER ------------ Nuclear Core > --- PROPULSION ------- Carbon-fiber Leg VSS Leg > --- UTILITY ---------- Makeshift Targeting Computer A0-MCA's Component Scanner > --- WEAPON ----------- Beam Rifle Beam Cannon > --- INVENTORY -------- Scrap Suit Small Storage Unit DRS Beacon [Rating: 24] Favorites ----------- Power Nuclear Core Engine Makeshift Power Source Power Core Nuclear Core Propulsion Aluminum Leg Treads Overtuned Treads Leg Aluminum Leg Utility Scrap Shield Storage Small Storage Unit Processor Targeting Computer Protection Scrap Shield Weapon Beam Rifle Energy Gun Beam Rifle Energy Cannon Beam Cannon Ballistic Gun Light Assault Rifle Slashing Weapon Makeshift Axe Build | -11 -10 -10 -10 -8 ------- Run | Yrd Mat Min Sub Scr Slots Evolved . | . . . . . Power . | . . . . . Propulsion . | . . . . . Utility . | . . . . . Weapon . | . . . . . Parts Attached 30 | 6 5 . 4 15 Power 4 | 1 1 . 1 1 Engine 2 | 1 . . 1 . Core 2 | . 1 . . 1 Reactor . | . . . . . Propulsion 13 | 2 4 . . 7 Treads 2 | . . . . 2 Leg 11 | 2 4 . . 5 Wheel . | . . . . . Hover . | . . . . . Flight . | . . . . . Utility 7 | 1 . . 1 5 Device . | . . . . . Storage 1 | 1 . . . . Processor 5 | . . . . 5 Hackware . | . . . . . Protection 1 | . . . 1 . Artifact . | . . . . . Weapon 6 | 2 . . 2 2 Energy Gun 1 | . . . . 1 Energy Cannon 2 | . . . 1 1 Ballistic Gun 2 | 2 . . . . Ballistic Cannon . | . . . . . Launcher . | . . . . . Special Weapon . | . . . . . Impact Weapon . | . . . . . Slashing Weapon 1 | . . . 1 . Piercing Weapon . | . . . . . Special Melee Weapon . | . . . . . Unidentified Prototypes . | . . . . . Parts Lost 1 | . . . . 1 Power . | . . . . . Propulsion . | . . . . . Utility . | . . . . . Weapon 1 | . . . . 1 Highest Loss Streak 1 | . . . . 1 To Critical Strikes . | . . . . . Average Backups 3 | 1 2 4 4 4 Power 1 | . 1 2 2 . Propulsion . | . . . . . Utility 2 | . . 1 1 2 Weapon . | . . 1 1 . Tool/Special . | . . . . . Unused Backups 7 | . . . . 7 Power 2 | . . . . 2 Propulsion . | . . . . . Utility 5 | . . . . 5 Weapon . | . . . . . Tool/Special . | . . . . . Average Slot Usage (%) 89 | . 84 85 84 91 Engine 5 | . 8 . 11 4 Core 8 | . 5 14 3 9 Leg 27 | . 27 28 28 27 Storage 2 | . 14 14 . . Processor 8 | . . . . 12 Protection 7 | . . . 13 7 Energy Gun 6 | . . . . 9 Energy Cannon 10 | . . . 10 13 Ballistic Gun 5 | . 28 28 5 . Slashing Weapon 4 | . . . 12 4 Peak Build Rating 24 | 6 8 8 16 24 Average Rating 15 | 4 6 8 15 17 On Entrance 7 | . 6 8 8 16 Avg Prop Armor Cover (%) 10 | . . . . 10 Naked Turns . | . . . . . Heaviest Build 33 | 12 12 12 33 33 Greatest Support 36 | 20 20 20 20 36 Greatest Overweight (x) 1 | . 1 . 1 1 Average Overweight (x) . | . . . . . Largest Inventory Capacity 8 | 8 8 8 8 5 Average Capacity 5 | 6 8 8 5 5 Most Carried 5 | 5 5 4 5 5 Average Carried 4 | 1 2 4 4 4 Final Capacity 8 | 8 8 8 5 5 Final Carried 5 | 1 4 4 5 5 Class Distribution -------------------- 70% | Mutant 29% | Derelict-Mutant Dominant Class ---------------- Mutant | -10/Materials Mutant | -10/Mines Mutant | -10/Subcaves Mutant | -8/Scraptown Resources | -11 -10 -10 -10 -8 ----------- Run | Yrd Mat Min Sub Scr Matter Collected 567 | 244 130 . 20 173 Remotely . | . . . . . Salvage Created 352 | . 282 . . 70 Parts 28 | . 24 . . 4 Haulers Intercepted . | . . . . . Recyclers Shooed . | . . . . . Parts Field Recycled . | . . . . . Retrieved Matter . | . . . . . Parts Self-Destructed 2 | . . . 2 . Prevented . | . . . . . Parts Restored . | . . . . . Kills | -11 -10 -10 -10 -8 ------- Run | Yrd Mat Min Sub Scr Combat Hostiles Destroyed 8 | . 7 . . 1 Guns 8 | . 7 . . 1 Classes Destroyed 2 | . 1 . . 1 Grunt 7 | . 7 . . . Scrapper 1 | . . . . 1 Best Kill Streak 3 | . 3 . . 1 Combat Bots Only 3 | . 3 . . 1 Max Kills in Single Turn 1 | . 1 . . 1 Gunslinging . | . . . . . Exploded . | . . . . . Melee . | . . . . . Uniques/NPCs Destroyed . | . . . . . Combat | -11 -10 -10 -10 -8 -------- Run | Yrd Mat Min Sub Scr Hostile Shots Fired 76 | . 37 . . 39 Missed 18 | . 10 . . 8 Hits 58 | . 27 . . 31 Melee 1 | . . . . 1 Projectile 57 | . 27 . . 30 Critical Strikes 7 | . 1 . . 6 Damage Taken 928 | . 345 . . 583 Core 269 | . 84 . . 185 Absorbed by Shields . | . . . . . Regen/Repaired (Parts) 102 | . . . . 102 Core Remaining (%) 100 | 100 . . . . Volleys Fired 40 | . 32 . 3 5 Largest 2 | . 2 . 1 2 Hottest 116 | . 40 . 20 116 Shots Fired 76 | . 64 . 3 9 Gun 71 | . 64 . 3 4 Cannon 5 | . . . . 5 Launcher . | . . . . . Special . | . . . . . Kinetic 67 | . 64 . 3 . Thermal 9 | . . . . 9 Explosive . | . . . . . Electromagnetic . | . . . . . Robot Hit Streak 8 | . 8 . . 7 Robot Miss Streak 3 | . 3 . . 1 Penetration Max . | . . . . . Secondary Targets 1 | . 1 . . . Max Gunslinging Chain 1 | . 1 . . . Shots Hit Robots 48 | . 41 . . 7 Core Hits 23 | . 21 . . 2 Critical Kills . | . . . . . Critical Parts Destroyed . | . . . . . Critical Strikes . | . . . . . Melee Attacks 4 | . . . 4 . Impact . | . . . . . Slashing 4 | . . . 4 . Piercing . | . . . . . Sneak Attacks . | . . . . . Combat Hostiles . | . . . . . Follow-up Attacks . | . . . . . Damage Inflicted 460 | . 346 . . 114 Guns 389 | . 346 . . 43 Cannons 71 | . . . . 71 Explosions . | . . . . . Melee . | . . . . . Ramming . | . . . . . Kinetic 346 | . 346 . . . Thermal 114 | . . . . 114 Explosive . | . . . . . Electromagnetic . | . . . . . Impact . | . . . . . Slashing . | . . . . . Piercing . | . . . . . Highest Corruption . | . . . . . Average Corruption . | . . . . . Corruption Purged . | . . . . . Corruption Blocked . | . . . . . Overload Shots . | . . . . . Overflow Damage . | . . . . . Projectiles . | . . . . . Explosions . | . . . . . Melee . | . . . . . Knockbacks . | . . . . . Impact . | . . . . . Kinetic . | . . . . . Secondary . | . . . . . Self-Inflicted Damage . | . . . . . Shots . | . . . . . Rammed . | . . . . . Targets Rammed . | . . . . . Kicked . | . . . . . Crushed . | . . . . . Highest Temperature 395 | . 27 . . 395 Average Temperature 135 | . 9 . . 262 Received Heat Transfer 666 | . 216 . . 450 Effects 4 | . . . . 4 Shutdowns 1 | . . . . 1 Energy Bleed 2 | . . . . 2 Damage (minor) 1 | . . . . 1 Siege Activations . | . . . . . Martial Activations . | . . . . . Shielding Activations . | . . . . . Robots Disrupted . | . . . . . Combat Hostiles . | . . . . . Robots Corrupted . | . . . . . Combat Hostiles . | . . . . . Parts Fried . | . . . . . Impact Corruptions . | . . . . . Robots Melted . | . . . . . Combat Hostiles . | . . . . . Parts Melted 1 | . . . . 1 Heat Transferred 187 | . . . . 187 Parts Sabotaged . | . . . . . Parts Stolen . | . . . . . Parts Stripped . | . . . . . Power Chain Reactions . | . . . . . Alert | -11 -10 -10 -10 -8 ------- Run | Yrd Mat Min Sub Scr Maximum Alert Level . | . . . . . Low Security (%) 100 | 100 100 100 . . Level 1 . | . . . . . Level 2 . | . . . . . Level 3 . | . . . . . Level 4 . | . . . . . Level 5 . | . . . . . High Security . | . . . . . Max Security . | . . . . . Peak Influence 60 | . 60 5 . . Initial 5 | . . 5 . . Average 14 | . 25 . . . Influence Increases 192 | . 190 2 . . Destroy 0b10 Robot/C 140 | . 140 . . . Destroy Leader 30 | . 30 . . . Successful Hack 7 | . 5 2 . . Lose Combat Pursuer 15 | . 15 . . . Influence Decreases 192 | . 176 16 . . Entered New Map 9 | . . 9 . . Time Decay 183 | . 176 7 . . Squads Dispatched 2 | . 2 . . . Investigation . | . . . . . Extermination . | . . . . . Reinforcement 2 | . 2 . . . Assault . | . . . . . Garrison . | . . . . . Intercept . | . . . . . Searches Triggered . | . . . . . Construction Impeded . | . . . . . Haulers Reinforced . | . . . . . Active Scanning Responses . | . . . . . Cargo Convoy Interrupts . | . . . . . Stealth | -11 -10 -10 -10 -8 --------- Run | Yrd Mat Min Sub Scr Distress Signals 1 | . 1 . . . Communications Jammed . | . . . . . Distress Signals . | . . . . . Times Spotted 33 | . 16 . . 17 Peak Tracking Total 6 | . 4 . . 6 Tactical Retreats 1 | . 1 . . . Traps | -11 -10 -10 -10 -8 ------- Run | Yrd Mat Min Sub Scr Traps Triggered . | . . . . . Indirectly . | . . . . . Trap Hack Attempts . | . . . . . Triggered . | . . . . . Disarmed . | . . . . . Reprogrammed . | . . . . . Reused . | . . . . . Traps Extracted . | . . . . . Installed 1 | . . . . 1 Triggered . | . . . . . Most Traps Carried 1 | . . . . 1 Machines | -11 -10 -10 -10 -8 ---------- Run | Yrd Mat Min Sub Scr Machines Disabled 1 | . . . . 1 Max in Single Turn 1 | . . . . 1 Machines Repaired . | . . . . . Machines Dismantled . | . . . . . Machines Sabotaged . | . . . . . Overloaded Fab Kills . | . . . . . Hacking | -11 -10 -10 -10 -8 --------- Run | Yrd Mat Min Sub Scr Machines Accessed 11 | . 3 1 . 7 Terminals 3 | . 2 1 . . Fabricators . | . . . . . Repair Stations . | . . . . . Recycling Units 1 | . 1 . . . Scanalyzers . | . . . . . Garrison Access . | . . . . . Total Hacks 56 | . 7 2 . 47 Successful 51 | . 3 1 . 47 Failed 5 | . 4 1 . . Catastrophic . | . . . . . Database Lockouts . | . . . . . Manual . | . . . . . Terminals 8 | . 6 2 . . Fabricators . | . . . . . Repair Stations . | . . . . . Recycling Units 1 | . 1 . . . Scanalyzers . | . . . . . Garrison Access . | . . . . . Terminal Hacks 50 | . 2 1 . 47 Record 47 | . . 1 . 46 Robot Analysis 1 | . 1 . . . Recall Investigation 1 | . 1 . . . Proto ID Catalog 1 | . . . . 1 Fabricator Hacks . | . . . . . Repair Station Hacks . | . . . . . Recycling Unit Hacks 1 | . 1 . . . Retrieve Components 1 | . 1 . . . Scanalyzer . | . . . . . Garrison Access Hacks . | . . . . . Unauthorized Hacks . | . . . . . Terminals . | . . . . . Fabricators . | . . . . . Repair Stations . | . . . . . Recycling Units . | . . . . . Scanalyzers . | . . . . . Garrison Access . | . . . . . Data Cores Recovered . | . . . . . Used . | . . . . . Hacking Detections 2 | . 2 . . . Full Trace Events . | . . . . . Feedback Events . | . . . . . Feedback Blocked . | . . . . . Robot Schematics Acquired . | . . . . . Robots Built . | . . . . . Authchips . | . . . . . Time . | . . . . . Total Robot Build Rating . | . . . . . Part Schematics Acquired . | . . . . . Parts Built . | . . . . . Authchips . | . . . . . Time . | . . . . . Total Part Build Rating . | . . . . . Part Studies Acquired . | . . . . . Parts Repaired . | . . . . . Time . | . . . . . Parts Recycled . | . . . . . Recycled Matter . | . . . . . Retrieved Matter . | . . . . . Retrieved Components 6 | . 6 . . . Parts Scanalyzed . | . . . . . Part Schematics Acquired . | . . . . . Parts Damaged . | . . . . . Bothacking | -11 -10 -10 -10 -8 ------------ Run | Yrd Mat Min Sub Scr Used RIF Installer . | . . . . . Robots Hacked . | . . . . . Non-combat . | . . . . . Combat . | . . . . . Robot Hacks Applied . | . . . . . Relay Couplers Released . | . . . . . Fabnet Peak Effective % . | . . . . . Robots Rewired . | . . . . . Allies Hacked . | . . . . . Hacks Repelled . | . . . . . Allies | -11 -10 -10 -10 -8 -------- Run | Yrd Mat Min Sub Scr Total Allies . | . . . . . Largest Group . | . . . . . Highest-Rated Group . | . . . . . Highest-Rated Ally . | . . . . . Total Orders . | . . . . . Ally Attacks . | . . . . . Total Damage . | . . . . . Kills . | . . . . . Allies Corrupted . | . . . . . Allies Melted 2 | . . . . 2 Intel | -11 -10 -10 -10 -8 ------- Run | Yrd Mat Min Sub Scr Active Infowar (turns) . | . . . . . Robot Analysis Total 1 | . 1 . . . Derelict Logs Recovered 2 | . . . . 2 Drone Launches . | . . . . . Drone Recoveries . | . . . . . Exploration | -11 -10 -10 -10 -8 ------------- Run | Yrd Mat Min Sub Scr Turns Passed 3876 | 48 427 263 412 2726 Spaces Moved 2498 | 37 269 212 209 1771 Core 13 | 13 . . . . Treads 5 | . . . . 5 Legs 2480 | 24 269 212 209 1766 Wheels . | . . . . . Hover . | . . . . . Flight . | . . . . . Fastest Speed 50 | 50 120 120 120 90 Average Speed 147 | 95 122 120 187 150 Slowest Speed 190 | 120 190 120 190 190 Overloaded Moves . | . . . . . Propulsion Burnouts . | . . . . . Robots Hopped . | . . . . . Potential Cave-ins . | . . . . . Cave-ins Triggered . | . . . . . Exploration Rate (%) 39 | 4 41 51 20 83 Regions Visited 4 Branch Regions 3 Pre-discovered Areas 1 | . . 1 . . Known Exits Taken . | . . . . . Unknown Exits Taken 4 | 1 1 1 1 . Scrap Searched 10 | . . 1 1 8 Spaces Dug 1 | . . . 1 . Terrain Destroyed 1 | . . . 1 . Melee 1 | . . . 1 . Projectile . | . . . . . AOE . | . . . . . Terrain Rammed . | . . . . . Walls Destroyed . | . . . . . Machines Disabled . | . . . . . Actions | -11 -10 -10 -10 -8 --------- Run | Yrd Mat Min Sub Scr Total 2635 | 49 318 220 223 1825 Wait 9 | . . 9 . . Move 2494 | 36 268 211 208 1771 Hop . | . . . . . Pick Up 28 | 7 8 . . 13 Fast Attach 12 | . . . 4 8 Attach 15 | 6 3 . . 6 Detach 1 | . . . 1 . Swap 3 | . 2 . . 1 Drop 28 | . 5 . 3 20 Fire 40 | . 32 . 3 5 Melee 4 | . . . 4 . Ram . | . . . . . Kick . | . . . . . Crush . | . . . . . Escape Stasis . | . . . . . Rewire . | . . . . . Trap 1 | . . . . 1 Miscellaneous . | . . . . . Route ------- -11/Scrapyard -10/Materials (discovered 3 exits: [*Mat x2] / *Min) -10/Mines (discovered 2 exits: [*Mat] / [*Sub]) -10/Subcaves (discovered 2 exits: [*Mat] / *Scr) -8/Scraptown (discovered 2 exits: [*Fac x2]) History --------- Turn | Location | Event 9 | -11/Scrapyard | Discovered new exit (range 16) 49 | -11/Scrapyard | Entered Materials 166 | -10/Materials | Discovered new exit (range 15) 262 | -10/Materials | Discovered new exit (range 10) 332 | -10/Materials | Build established: Mutant 359 | -10/Materials | Discovered new exit (range 14) 476 | -10/Materials | Entered Mines 658 | -10/Mines | Learned location of Storage (-8) 717 | -10/Mines | Discovered new exit (range 15) 727 | -10/Mines | Discovered new exit (range 10) 739 | -10/Mines | Entered Subcaves 740 | -10/Subcaves | Approached by a straggling Scientist 805 | -10/Subcaves | Shifting Twisted Machinery released Mak. Power Source 810 | -10/Subcaves | Shifting Twisted Machinery released Sub. Beam Cannon 1020 | -10/Subcaves | Discovered new exit (range 10) 1151 | -10/Subcaves | Entered Scraptown 1499 | -8/Scraptown | Discovered new exit (range 13) 1606 | -8/Scraptown | Scanned Subdweller tech in exchange for log data 1609 | -8/Scraptown | Learned Factory terminal intel 1611 | -8/Scraptown | Learned Research terminal intel 1750 | -8/Scraptown | Visited The Evicted 1799 | -8/Scraptown | Visited Comm Corps 1930 | -8/Scraptown | Visited Bundlers 2091 | -8/Scraptown | Visited Shadow of the Wyrm 2203 | -8/Scraptown | Visited CR-KLE's Repair Center 2228 | -8/Scraptown | Visited IN-MT5's Study 2323 | -8/Scraptown | Visited Cyclists 2424 | -8/Scraptown | Visited UFD Registry 2424 | -8/Scraptown | Registered with UFD as "Hellcircuit" 2479 | -8/Scraptown | Entered Cyclist Reading Room 2570 | -8/Scraptown | Visited Scrap Suit Storage 2680 | -8/Scraptown | Delivered Scrap Shield to a Scientist 2756 | -8/Scraptown | Found Scrap Suit 2823 | -8/Scraptown | Visited DA-N13 Charitable Foundation 2828 | -8/Scraptown | Found DCF Scrap (31 items) 2881 | -8/Scraptown | Visited Chapter 10 2955 | -8/Scraptown | Visited Observation Area 2980 | -8/Scraptown | Build established: Derelict-Mutant 3006 | -8/Scraptown | Visited Research Penetration Think Tank 3032 | -8/Scraptown | Visited A0-MCA Data Center 3039 | -8/Scraptown | Given a B rating by A0-MCA 3047 | -8/Scraptown | Found A0-MCA's Component Scanner 3101 | -8/Scraptown | Visited Derelict Rescue Squad 3109 | -8/Scraptown | Found DRS Beacon 3158 | -8/Scraptown | Visited Science Guys 3279 | -8/Scraptown | CR-KLE repaired 5 parts 3399 | -8/Scraptown | Visited LU-1G1's Boring Crew 3490 | -8/Scraptown | Discovered new exit (range 5) 3616 | -8/Scraptown | Met Optimus 3616 | -8/Scraptown | Accepted into 0bPrime 3696 | -8/Scraptown | Civil war broke out across Scraptown 3765 | -8/Scraptown | Lost 6 allies 3841 | -8/Scraptown | Core integrity fell below 50% 3855 | -8/Scraptown | Core integrity fell below 20% 3877 | -8/Scraptown | Destroyed by D9-A3V(j) with Overtuned Pulse Rifle Last Messages --------------- TK-PNA(j) overheating. Beam Rifle destroyed. Critical hit (Burn: +50). TK-PNA(j) destroyed. Critical hit (Burn: +50). 25-ZFB(j) cannibalizes Ovr. Titanium Leg to repair Ovr. Titanium Leg. Overheating: Energy bleed (-47). 25-ZFB(j) heat spikes uncontrollably. KV-JDV(E): "We are one!" Dropped VSS Leg. Acquired Ovr. Treads. Supplies damaged. Dropped VSS Leg. Acquired Ovr. Treads. D9-A3V(j) cannibalizes Ovr. Titanium Leg to repair Ovr. Titanium Leg. Acquired 20 matter. QZ-EX0(g) destroyed. [Achievement: This Is Interesting...] Map ----- +----------------------------------------------------+ | | | | | | | | | | | | | | | | | ?????????????????????????????????????????????????? | | ?????????????????????????????????????????????????? | | ?????????????????????????????????????????????????? | | ?????????????????????????????????????????????????? | | ?????????????????????????????????????????????????? | | ?????????????????????????????????????????????????? | | ?????????????????????????????????????????????????? | | ?????????????????????????????????????????????????? | | ?????????????????????????????????????????????????? | | ?????????????????????????????????????????????????? | | ?????????????????????????????????????????????????? | | ???????????????????????????????#####?????????????? | | ???????????????????????????????#"""#?????????????? | | ###################???####?????#" "#?????????????? | | """##"""##""|##"""#??##!!##????# < #?????????????? | | "" ##""!##"" ##!! #### ![[######[[[##????????????? | | "" j !=[!!!x%=[%*[!=*!!!#????????????? | | =!=!!=!=@=!%[%!=%!=#????????????? | | ######################!*%%###########????????????? | | ?????????????????????##%!=#??????????????????????? | | ?????????????##########[!!#??????????????????????? | | ?????????????#""""""""#%[############????????????? | | ?##??#???????#" " & "==!## # # #????????????? | | ?# #? ?##????#" "#%%## # """ # #????????????? | | ## # # #????#"" ""#!!## # "#" # #????????????? | | # # #????#" "[==## # """ # #????????????? | | # #????#"" ""#*!## #????????????? | | #????#" "#jj## ####### #????????????? | | ##???#"" ""#!j## # # #????????????? | | # #???# #%[## # # #????????????? | | ? #???# #= ## # # #????????????? | | ???"""""?????# #%[## #????????????? | | ????# #??????####[#####=!"# #########????????????? | | ##### ###########%####"%!## ###############??????? | | """"" " """""""""!""""**% " "## """""""""#??????? | | [ ! !=%[ !%* ## "#??????? | | =%**%! !%[ %[! == "## """""" "#??????? | | [! "## "????" "#??????? | | "## "????" "#??????? | | "????" "#??????? | | """""""""""""""""" "" % "## [ """""" "#??????? | | """""""""""""""""""""" "## " "#??????? | +----------------------------------------------------+ Best States ------------- Heat Dissipation 25 Energy Generation 15 Energy Capacity 250 Matter Stores 300 Matter Capacity 300 Sight Range 16 Terrain Scan Density 10 Armor Coverage 800 Evasion (%) 57 Targeting Accuracy 10 Recoil Reduction 1 Item Schematics ----------------- None Robot Schematics ------------------ None Fabricated ------------ Nothing Repaired ---------- Nothing Studied --------- None Alien Tech Used ----------------- None Achievements -------------- Sprinter This Is Interesting... Challenges ------------ None Game ------ Seed BiometalHellfireCalibrator Manual? 0 Play Time 00:38:16 Cumulative 14.2 hours Start 2025.12.29 @ 15:33:11 End 2025.12.29 @ 16:29:51 Sessions 1 Manual Loads 0 Difficulty Rogue Special Mode None Game No. 18 Rogue 18 Adventurer 0 Explorer 0 Win Type - Total 0 Types 0/0/0/0/0/0/0/0/0/0 Lore% 25 Gallery% 16 Achievement% 13 Wizard Run 0 Options --------- Layout 1 ASCII 0 Keyboard 0 Movement Mouse Keybinds 0 Fullscreen 1 Font 24/Smallcaps Map View 50x35 Zoom Use 0% Tactical HUD 0 Map Filters NONE Filters NONE Steam 1 RUN: f5779ebb-a828-4bb7-9f73-17bbf6e94a6f